[Event "Early-Titled-Tuesday-Blitz-April-02-2024"]
[Site "Chess.com"]
[Date "2024.04.02"]
[Round "4"]
[White "tomesao"]
[Black "Gabcur"]
[Result "1-0"]
[WhiteElo "2552"]
[BlackElo "2353"]
[TimeControl "180+1"]
[EndTime "8:37:23 PDT"]
[Termination "tomesao won by checkmate"]

1. Nf3 {[%clk 0:03:00.9]} 1... d5 {[%clk 0:02:56]} 2. c4 {[%clk 0:03:01.1]} 2...
c6 {[%clk 0:02:54.7]} 3. e3 {[%clk 0:03:00.8]} 3... Nf6 {[%clk 0:02:53.9]} 4.
Nc3 {[%clk 0:02:59]} 4... Nbd7 {[%clk 0:02:53.4]} 5. b3 {[%clk 0:02:58.8]} 5...
e6 {[%clk 0:02:53.3]} 6. Bb2 {[%clk 0:02:58.7]} 6... b6 {[%clk 0:02:53.3]} 7.
Be2 {[%clk 0:02:58.1]} 7... Bb7 {[%clk 0:02:53.5]} 8. Qc2 {[%clk 0:02:50.8]}
8... Rc8 {[%clk 0:02:51.7]} 9. Rg1 {[%clk 0:02:47.5]} 9... e5 {[%clk 0:02:30.2]}
10. g4 {[%clk 0:02:44.2]} 10... e4 {[%clk 0:02:29.7]} 11. Nd4 {[%clk 0:02:41.8]}
11... Ne5 {[%clk 0:02:22]} 12. g5 {[%clk 0:02:37.5]} 12... Nfd7 {[%clk
0:02:20.1]} 13. Nf5 {[%clk 0:02:31.5]} 13... Nc5 {[%clk 0:02:13.1]} 14. Nxe4
{[%clk 0:02:23]} 14... dxe4 {[%clk 0:01:36.6]} 15. Bxe5 {[%clk 0:02:21.3]} 15...
Rg8 {[%clk 0:01:14.1]} 16. Qc3 {[%clk 0:02:04.8]} 16... Ne6 {[%clk 0:00:30.1]}
17. d3 {[%clk 0:01:50.4]} 17... c5 {[%clk 0:00:23.6]} 18. O-O-O {[%clk
0:01:44.9]} 18... Rc6 {[%clk 0:00:10.2]} 19. dxe4 {[%clk 0:01:42.7]} 19... Qa8
{[%clk 0:00:10.2]} 20. Rd2 {[%clk 0:01:26.3]} 20... Rc8 {[%clk 0:00:09.1]} 21.
f3 {[%clk 0:01:26.2]} 21... g6 {[%clk 0:00:08.6]} 22. Nd6+ {[%clk 0:01:21.1]}
22... Bxd6 {[%clk 0:00:08.6]} 23. Rxd6 {[%clk 0:01:22]} 23... Ke7 {[%clk
0:00:08]} 24. Rgd1 {[%clk 0:01:20.2]} 24... Rc7 {[%clk 0:00:07.5]} 25. Rxe6+
{[%clk 0:01:18.3]} 25... fxe6 {[%clk 0:00:05.7]} 26. Bxc7 {[%clk 0:01:19.2]}
26... Re8 {[%clk 0:00:05.3]} 27. Qf6# {[%clk 0:01:18.3]} 1-0

[Event "Early-Titled-Tuesday-Blitz-April-02-2024"]
[Site "Chess.com"]
[Date "2024.04.02"]
[Round "4"]
[White "NelsonLinda"]
[Black "ural58"]
[Result "1-0"]
[WhiteElo "2643"]
[BlackElo "2469"]
[TimeControl "180+1"]
[EndTime "8:37:28 PDT"]
[Termination "NelsonLinda won by resignation"]

1. Nf3 {[%clk 0:03:00.9]} 1... d5 {[%clk 0:02:54.1]} 2. g3 {[%clk 0:03:01.8]}
2... Nc6 {[%clk 0:02:53.2]} 3. Bg2 {[%clk 0:03:02.3]} 3... e5 {[%clk 0:02:52.2]}
4. d3 {[%clk 0:03:02.8]} 4... f6 {[%clk 0:02:49.7]} 5. O-O {[%clk 0:03:00.1]}
5... Be6 {[%clk 0:02:49.7]} 6. Nc3 {[%clk 0:03:00.6]} 6... Nge7 {[%clk
0:02:47.3]} 7. e4 {[%clk 0:02:52.5]} 7... Qd7 {[%clk 0:02:46.8]} 8. d4 {[%clk
0:01:59.3]} 8... O-O-O {[%clk 0:02:45.7]} 9. dxe5 {[%clk 0:01:50.3]} 9... fxe5
{[%clk 0:02:45.7]} 10. Ng5 {[%clk 0:01:36.6]} 10... d4 {[%clk 0:02:42.9]} 11.
Nd5 {[%clk 0:01:19.7]} 11... Nxd5 {[%clk 0:02:39.7]} 12. exd5 {[%clk 0:01:19.8]}
12... Bg4 {[%clk 0:02:29.8]} 13. f3 {[%clk 0:01:19.1]} 13... Bf5 {[%clk
0:02:17.1]} 14. dxc6 {[%clk 0:01:18]} 14... Qxc6 {[%clk 0:02:18]} 15. Ne4 {[%clk
0:01:10.4]} 15... Be7 {[%clk 0:02:16.5]} 16. Kh1 {[%clk 0:01:06.1]} 16... h5
{[%clk 0:02:16.6]} 17. h4 {[%clk 0:01:06]} 17... Rhf8 {[%clk 0:02:15.7]} 18. Bg5
{[%clk 0:00:53.4]} 18... Bxe4 {[%clk 0:02:13.6]} 19. Bxe7 {[%clk 0:00:48.7]}
19... Bxc2 {[%clk 0:02:13.6]} 20. Qd2 {[%clk 0:00:47.4]} 20... d3 {[%clk
0:02:08.4]} 21. Bxd8 {[%clk 0:00:44.5]} 21... Rxd8 {[%clk 0:02:07.9]} 22. f4
{[%clk 0:00:41.9]} 22... e4 {[%clk 0:02:07.7]} 23. Rae1 {[%clk 0:00:41.3]} 23...
Rd4 {[%clk 0:02:07.1]} 24. Re3 {[%clk 0:00:35.5]} 24... a5 {[%clk 0:01:50.3]}
25. Rfe1 {[%clk 0:00:32.7]} 25... Kb8 {[%clk 0:01:50.4]} 26. Rxe4 {[%clk
0:00:31.3]} 26... Rxe4 {[%clk 0:01:50.7]} 27. Bxe4 {[%clk 0:00:31]} 27... Qb6
{[%clk 0:01:47.5]} 28. Bxd3 {[%clk 0:00:20.4]} 28... Bxd3 {[%clk 0:01:43.3]} 29.
Qxd3 {[%clk 0:00:20.1]} 29... Qxb2 {[%clk 0:01:43.9]} 30. Re2 {[%clk 0:00:19.8]}
30... Qc1+ {[%clk 0:01:42.7]} 31. Kg2 {[%clk 0:00:19.9]} 31... Qc6+ {[%clk
0:01:43.3]} 32. Qe4 {[%clk 0:00:19.7]} 32... Qd6 {[%clk 0:01:42.7]} 33. Qe8+
{[%clk 0:00:19.8]} 33... Ka7 {[%clk 0:01:43]} 34. Qxh5 {[%clk 0:00:20]} 34... b6
{[%clk 0:01:40.4]} 35. Qe5 {[%clk 0:00:20.2]} 35... Qd3 {[%clk 0:01:39.3]} 36.
Qxc7+ {[%clk 0:00:20]} 36... Ka6 {[%clk 0:01:38.9]} 37. Qc8+ {[%clk 0:00:20.4]}
37... Kb5 {[%clk 0:01:37.9]} 38. Rb2+ {[%clk 0:00:19.4]} 38... Ka4 {[%clk
0:01:36.2]} 39. Qc2+ {[%clk 0:00:18.5]} 1-0

[Event "Early-Titled-Tuesday-Blitz-April-02-2024"]
[Site "Chess.com"]
[Date "2024.04.02"]
[Round "4"]
[White "PolandHussars"]
[Black "MagnusCarlsen"]
[Result "0-1"]
[WhiteElo "2583"]
[BlackElo "3230"]
[TimeControl "180+1"]
[EndTime "8:37:32 PDT"]
[Termination "MagnusCarlsen won by resignation"]

1. e4 {[%clk 0:02:59.8]} 1... c5 {[%clk 0:01:55.4]} 2. Ne2 {[%clk 0:02:59.1]}
2... Nf6 {[%clk 0:01:54.9]} 3. Nbc3 {[%clk 0:02:58.6]} 3... d5 {[%clk 0:01:55]}
4. exd5 {[%clk 0:02:58.4]} 4... Nxd5 {[%clk 0:01:54.8]} 5. Nxd5 {[%clk
0:02:56.7]} 5... Qxd5 {[%clk 0:01:54.8]} 6. Nc3 {[%clk 0:02:57.1]} 6... Qd7
{[%clk 0:01:52.8]} 7. Bb5 {[%clk 0:02:54.8]} 7... Nc6 {[%clk 0:01:52.9]} 8. Qf3
{[%clk 0:02:54.6]} 8... Qe6+ {[%clk 0:01:51.1]} 9. Qe4 {[%clk 0:02:48.6]} 9...
Qxe4+ {[%clk 0:01:42.4]} 10. Nxe4 {[%clk 0:02:49.5]} 10... e5 {[%clk 0:01:43.2]}
11. Bxc6+ {[%clk 0:02:48.4]} 11... bxc6 {[%clk 0:01:44.1]} 12. O-O {[%clk
0:02:48.3]} 12... c4 {[%clk 0:01:43.6]} 13. b3 {[%clk 0:02:40.9]} 13... Be6
{[%clk 0:01:43.6]} 14. Bb2 {[%clk 0:02:38.9]} 14... f6 {[%clk 0:01:43.3]} 15. f4
{[%clk 0:02:31.7]} 15... exf4 {[%clk 0:01:43.2]} 16. Rae1 {[%clk 0:02:28.8]}
16... Kd7 {[%clk 0:01:31.3]} 17. Rxf4 {[%clk 0:02:13.1]} 17... cxb3 {[%clk
0:01:31.6]} 18. axb3 {[%clk 0:02:12.7]} 18... Bd5 {[%clk 0:01:28.9]} 19. Nc3
{[%clk 0:01:57.2]} 19... Bc5+ {[%clk 0:01:27.8]} 20. d4 {[%clk 0:01:52.2]} 20...
Bb4 {[%clk 0:01:27]} 21. Re2 {[%clk 0:01:42.8]} 21... Bxc3 {[%clk 0:01:26.8]}
22. Bxc3 {[%clk 0:01:42.6]} 22... a5 {[%clk 0:01:27.7]} 23. Rg4 {[%clk
0:01:28.3]} 23... g5 {[%clk 0:01:27.3]} 24. Rg3 {[%clk 0:01:25.8]} 24... Rhe8
{[%clk 0:01:24.1]} 25. Rge3 {[%clk 0:01:23.3]} 25... Rxe3 {[%clk 0:01:24.2]} 26.
Rxe3 {[%clk 0:01:24.2]} 26... a4 {[%clk 0:01:24.7]} 27. bxa4 {[%clk 0:01:24.4]}
27... Rxa4 {[%clk 0:01:24.2]} 28. Kf2 {[%clk 0:01:14.1]} 28... h5 {[%clk
0:01:23.8]} 29. Re1 {[%clk 0:00:51.9]} 29... Rc4 {[%clk 0:01:21.5]} 30. Re3
{[%clk 0:00:51]} 30... f5 {[%clk 0:01:22.2]} 31. g3 {[%clk 0:00:45.5]} 31... f4
{[%clk 0:01:21]} 32. gxf4 {[%clk 0:00:45.4]} 32... gxf4 {[%clk 0:01:21.9]} 33.
Rh3 {[%clk 0:00:41.9]} 33... f3 {[%clk 0:01:19.5]} 34. Bd2 {[%clk 0:00:36.4]}
34... Rxc2 {[%clk 0:01:20.4]} 35. Ke3 {[%clk 0:00:36.7]} 35... f2 {[%clk
0:01:21]} 0-1

[Event "Early-Titled-Tuesday-Blitz-April-02-2024"]
[Site "Chess.com"]
[Date "2024.04.02"]
[Round "4"]
[White "VD_coach"]
[Black "ValentinDragnev"]
[Result "1/2-1/2"]
[WhiteElo "2572"]
[BlackElo "2722"]
[TimeControl "180+1"]
[EndTime "8:37:41 PDT"]
[Termination "Game drawn by repetition"]

1. d4 {[%clk 0:03:00.9]} 1... Nf6 {[%clk 0:02:57.2]} 2. c4 {[%clk 0:02:51.8]}
2... g6 {[%clk 0:02:55.4]} 3. Nf3 {[%clk 0:02:51.4]} 3... Bg7 {[%clk 0:02:54.7]}
4. g3 {[%clk 0:02:48]} 4... b6 {[%clk 0:02:54.3]} 5. Bg2 {[%clk 0:02:48.3]} 5...
Bb7 {[%clk 0:02:55.1]} 6. O-O {[%clk 0:02:48.6]} 6... O-O {[%clk 0:02:55.5]} 7.
Nc3 {[%clk 0:02:49]} 7... Ne4 {[%clk 0:02:56.2]} 8. Nxe4 {[%clk 0:02:46.6]} 8...
Bxe4 {[%clk 0:02:57.1]} 9. Be3 {[%clk 0:02:46.5]} 9... c5 {[%clk 0:02:49.2]} 10.
Qd2 {[%clk 0:02:44.5]} 10... cxd4 {[%clk 0:02:47.8]} 11. Bxd4 {[%clk 0:02:43.8]}
11... Nc6 {[%clk 0:02:38.7]} 12. Bxg7 {[%clk 0:02:42.1]} 12... Kxg7 {[%clk
0:02:39.6]} 13. Rfd1 {[%clk 0:02:31.1]} 13... d6 {[%clk 0:02:37.1]} 14. Rac1
{[%clk 0:02:24.8]} 14... Rc8 {[%clk 0:02:33.5]} 15. b3 {[%clk 0:02:24.2]} 15...
Qd7 {[%clk 0:02:25.7]} 16. Qe3 {[%clk 0:02:22.8]} 16... Bxf3 {[%clk 0:02:24.8]}
17. exf3 {[%clk 0:02:20.7]} 17... Ne5 {[%clk 0:02:13.1]} 18. Re1 {[%clk
0:01:59.2]} 18... Nc6 {[%clk 0:01:50.1]} 19. Rcd1 {[%clk 0:01:56.7]} 19... Rfe8
{[%clk 0:01:48]} 20. f4 {[%clk 0:01:56.6]} 20... Kg8 {[%clk 0:01:46.3]} 21. h4
{[%clk 0:01:56.2]} 21... Nb4 {[%clk 0:01:34.5]} 22. Qd2 {[%clk 0:01:47.8]} 22...
Na6 {[%clk 0:01:28.3]} 23. h5 {[%clk 0:01:44.9]} 23... gxh5 {[%clk 0:01:23.5]}
24. Qe2 {[%clk 0:01:34.6]} 24... Rc5 {[%clk 0:01:17.8]} 25. Bd5 {[%clk
0:01:25.7]} 25... e6 {[%clk 0:01:14.7]} 26. Qxh5 {[%clk 0:01:20.5]} 26... Kh8
{[%clk 0:00:49.6]} 27. Qh6 {[%clk 0:01:13.1]} 27... exd5 {[%clk 0:00:24.2]} 28.
Qf6+ {[%clk 0:01:08.8]} 28... Kg8 {[%clk 0:00:24.4]} 29. Qg5+ {[%clk 0:01:05.6]}
29... Kf8 {[%clk 0:00:22.9]} 30. Qh6+ {[%clk 0:01:04.8]} 30... Kg8 {[%clk
0:00:23.2]} 31. Qg5+ {[%clk 0:01:04.7]} 31... Kh8 {[%clk 0:00:23.5]} 32. Qf6+
{[%clk 0:01:04.8]} 32... Kg8 {[%clk 0:00:24]} 33. Qg5+ {[%clk 0:01:05.1]}
1/2-1/2

[Event "Early-Titled-Tuesday-Blitz-April-02-2024"]
[Site "Chess.com"]
[Date "2024.04.02"]
[Round "4"]
[White "Shiner22"]
[Black "RealPerangel"]
[Result "0-1"]
[WhiteElo "2317"]
[BlackElo "2527"]
[TimeControl "180+1"]
[EndTime "8:37:47 PDT"]
[Termination "RealPerangel won on time"]

1. e4 {[%clk 0:03:00.9]} 1... d5 {[%clk 0:02:59.7]} 2. exd5 {[%clk 0:03:00.8]}
2... Qxd5 {[%clk 0:03:00.6]} 3. Nc3 {[%clk 0:03:01]} 3... Qa5 {[%clk 0:03:01.2]}
4. d4 {[%clk 0:03:01.1]} 4... Nf6 {[%clk 0:03:01.8]} 5. Nf3 {[%clk 0:02:59.5]}
5... Bg4 {[%clk 0:03:02.2]} 6. h3 {[%clk 0:02:59.8]} 6... Bxf3 {[%clk
0:03:02.6]} 7. Qxf3 {[%clk 0:02:59.8]} 7... c6 {[%clk 0:03:03.2]} 8. Bc4 {[%clk
0:02:55.3]} 8... Nbd7 {[%clk 0:03:03.6]} 9. O-O {[%clk 0:02:53]} 9... e6 {[%clk
0:03:03.7]} 10. Bd2 {[%clk 0:02:35]} 10... Qb6 {[%clk 0:03:03]} 11. Qd3 {[%clk
0:02:09.8]} 11... Rd8 {[%clk 0:02:57.5]} 12. Na4 {[%clk 0:01:59.9]} 12... Qc7
{[%clk 0:02:55.3]} 13. Bb3 {[%clk 0:01:46.6]} 13... Bd6 {[%clk 0:02:35]} 14.
Rae1 {[%clk 0:01:19.3]} 14... O-O {[%clk 0:02:32.1]} 15. c4 {[%clk 0:01:15.2]}
15... c5 {[%clk 0:02:14.9]} 16. Bc2 {[%clk 0:00:44.6]} 16... cxd4 {[%clk
0:01:49.7]} 17. Bg5 {[%clk 0:00:43.9]} 17... h6 {[%clk 0:01:45.5]} 18. Bxf6
{[%clk 0:00:35.3]} 18... Nxf6 {[%clk 0:01:45.4]} 19. f4 {[%clk 0:00:33.1]} 19...
Bxf4 {[%clk 0:01:44.1]} 20. Kh1 {[%clk 0:00:32.9]} 20... Be3 {[%clk 0:01:41.2]}
21. Rxf6 {[%clk 0:00:31.5]} 21... g6 {[%clk 0:01:34]} 22. Ref1 {[%clk
0:00:24.5]} 22... Bg5 {[%clk 0:01:25.8]} 23. R6f3 {[%clk 0:00:14]} 23... f5
{[%clk 0:01:25.8]} 24. b4 {[%clk 0:00:12]} 24... e5 {[%clk 0:01:22.1]} 25. Qb3
{[%clk 0:00:09.7]} 25... e4 {[%clk 0:01:21.9]} 26. c5+ {[%clk 0:00:09.4]} 26...
Kg7 {[%clk 0:01:08.2]} 27. R3f2 {[%clk 0:00:01.7]} 27... Be3 {[%clk 0:01:05.2]}
28. Rd2 {[%clk 0:00:02]} 28... Bxd2 {[%clk 0:01:04.6]} 0-1

[Event "Early-Titled-Tuesday-Blitz-April-02-2024"]
[Site "Chess.com"]
[Date "2024.04.02"]
[Round "4"]
[White "Misterfox120"]
[Black "Andrei_Skvortsov"]
[Result "0-1"]
[WhiteElo "2406"]
[BlackElo "2693"]
[TimeControl "180+1"]
[EndTime "8:37:51 PDT"]
[Termination "Andrei_Skvortsov won by resignation"]

1. d4 {[%clk 0:03:00.9]} 1... Nf6 {[%clk 0:02:58]} 2. Nc3 {[%clk 0:03:01.3]}
2... d6 {[%clk 0:02:56.5]} 3. e4 {[%clk 0:03:00]} 3... e5 {[%clk 0:02:56.6]} 4.
dxe5 {[%clk 0:02:45.3]} 4... dxe5 {[%clk 0:02:57.5]} 5. Qxd8+ {[%clk 0:02:45.1]}
5... Kxd8 {[%clk 0:02:58]} 6. Bc4 {[%clk 0:02:45.5]} 6... Be6 {[%clk 0:02:56.6]}
7. Bxe6 {[%clk 0:02:44.5]} 7... fxe6 {[%clk 0:02:57.5]} 8. Nf3 {[%clk
0:02:31.5]} 8... Bd6 {[%clk 0:02:52.5]} 9. Be3 {[%clk 0:02:28.2]} 9... c6 {[%clk
0:02:50.5]} 10. O-O-O {[%clk 0:02:25.4]} 10... Ke7 {[%clk 0:02:48.2]} 11. h3
{[%clk 0:02:18.9]} 11... Nbd7 {[%clk 0:02:46.5]} 12. Nd2 {[%clk 0:02:19.4]}
12... b5 {[%clk 0:02:45]} 13. a4 {[%clk 0:01:56.2]} 13... a6 {[%clk 0:02:42.3]}
14. Nb3 {[%clk 0:01:56.6]} 14... Rhb8 {[%clk 0:02:31.5]} 15. Rd3 {[%clk
0:01:44.1]} 15... b4 {[%clk 0:02:29.4]} 16. Ne2 {[%clk 0:01:43.2]} 16... Nxe4
{[%clk 0:02:29.1]} 17. Rhd1 {[%clk 0:01:42.6]} 17... Ndc5 {[%clk 0:02:06.8]} 18.
Nxc5 {[%clk 0:01:30]} 18... Bxc5 {[%clk 0:02:07]} 19. Rd7+ {[%clk 0:01:30.3]}
19... Kf6 {[%clk 0:02:04.4]} 20. Bxc5 {[%clk 0:01:19]} 20... Nxc5 {[%clk
0:02:05.3]} 21. R7d6 {[%clk 0:01:18.4]} 21... b3 {[%clk 0:01:54]} 22. Rxc6
{[%clk 0:01:08.1]} 22... Rc8 {[%clk 0:01:48]} 23. Rdd6 {[%clk 0:01:02.9]} 23...
bxc2 {[%clk 0:01:46.3]} 24. Nc3 {[%clk 0:00:49.5]} 24... Nd3+ {[%clk 0:01:37.8]}
25. Rxd3 {[%clk 0:00:43.7]} 25... Rxc6 {[%clk 0:01:37.4]} 26. Kxc2 {[%clk
0:00:43.6]} 26... Rb8 {[%clk 0:01:36.1]} 27. Rf3+ {[%clk 0:00:35]} 27... Ke7
{[%clk 0:01:34.1]} 28. Re3 {[%clk 0:00:35.6]} 28... Rb4 {[%clk 0:01:33.5]} 29.
b3 {[%clk 0:00:31.2]} 29... e4 {[%clk 0:01:30.6]} 30. Kb2 {[%clk 0:00:28.3]}
30... Rcb6 {[%clk 0:01:25.6]} 31. Nxe4 {[%clk 0:00:27]} 31... Rxa4 {[%clk
0:01:24.3]} 32. Nc3 {[%clk 0:00:21]} 32... Rd4 {[%clk 0:01:22.6]} 33. Kc2 {[%clk
0:00:19.6]} 33... h5 {[%clk 0:01:21.1]} 34. Ne2 {[%clk 0:00:16.5]} 34... Rc6+
{[%clk 0:01:20.5]} 35. Kb1 {[%clk 0:00:14.4]} 35... Rd2 {[%clk 0:01:20.8]} 36.
Nc3 {[%clk 0:00:12.2]} 36... Rxf2 {[%clk 0:01:18.8]} 0-1

[Event "Early-Titled-Tuesday-Blitz-April-02-2024"]
[Site "Chess.com"]
[Date "2024.04.02"]
[Round "4"]
[White "ViratKohl_i"]
[Black "cakeuvdort"]
[Result "0-1"]
[WhiteElo "2501"]
[BlackElo "2324"]
[TimeControl "180+1"]
[EndTime "8:37:53 PDT"]
[Termination "cakeuvdort won by resignation"]

1. e4 {[%clk 0:02:54.9]} 1... d6 {[%clk 0:02:56.8]} 2. d4 {[%clk 0:02:53.6]}
2... Nf6 {[%clk 0:02:57]} 3. Nc3 {[%clk 0:02:53.5]} 3... e5 {[%clk 0:02:56.9]}
4. Nf3 {[%clk 0:02:52.3]} 4... Nbd7 {[%clk 0:02:56.9]} 5. Rg1 {[%clk 0:02:51.6]}
5... g6 {[%clk 0:02:48.6]} 6. g4 {[%clk 0:02:51.1]} 6... Bg7 {[%clk 0:02:48.4]}
7. Be3 {[%clk 0:02:47.6]} 7... O-O {[%clk 0:02:47.2]} 8. g5 {[%clk 0:02:47.1]}
8... Nh5 {[%clk 0:02:47.1]} 9. Be2 {[%clk 0:02:46.4]} 9... Re8 {[%clk
0:02:27.3]} 10. Qd2 {[%clk 0:02:44.9]} 10... Nf4 {[%clk 0:01:13.1]} 11. Bxf4
{[%clk 0:02:41.9]} 11... exf4 {[%clk 0:01:14]} 12. O-O-O {[%clk 0:02:41.4]}
12... c5 {[%clk 0:01:06.5]} 13. Qxf4 {[%clk 0:02:27.7]} 13... cxd4 {[%clk
0:00:51.8]} 14. Nxd4 {[%clk 0:02:21.2]} 14... Nc5 {[%clk 0:00:36.1]} 15. Ndb5
{[%clk 0:02:15.9]} 15... Be5 {[%clk 0:00:32]} 16. Qd2 {[%clk 0:02:14.6]} 16...
Bxc3 {[%clk 0:00:18.4]} 17. Nxc3 {[%clk 0:02:13]} 17... Nxe4 {[%clk 0:00:18.7]}
18. Nxe4 {[%clk 0:02:09.7]} 18... Rxe4 {[%clk 0:00:19.6]} 19. Bf3 {[%clk
0:02:06.7]} 19... Rc4 {[%clk 0:00:17.8]} 20. Qxd6 {[%clk 0:01:54.1]} 20... Qxd6
{[%clk 0:00:16.2]} 21. Rxd6 {[%clk 0:01:54]} 21... Bf5 {[%clk 0:00:17]} 22. c3
{[%clk 0:01:53.8]} 22... Rf4 {[%clk 0:00:10.7]} 23. Bxb7 {[%clk 0:01:43.9]}
23... Rb8 {[%clk 0:00:10.5]} 24. Bd5 {[%clk 0:01:41.3]} 24... Rxf2 {[%clk
0:00:10.4]} 25. Bb3 {[%clk 0:01:40.7]} 25... a5 {[%clk 0:00:09.8]} 26. Ra6
{[%clk 0:01:28.1]} 26... Re8 {[%clk 0:00:10.3]} 27. Rxa5 {[%clk 0:01:21.8]}
27... Ree2 {[%clk 0:00:10.6]} 28. Ra7 {[%clk 0:01:19.6]} 28... Rxb2 {[%clk
0:00:10.8]} 29. Bxf7+ {[%clk 0:01:04.9]} 29... Kf8 {[%clk 0:00:11.1]} 0-1

[Event "Early-Titled-Tuesday-Blitz-April-02-2024"]
[Site "Chess.com"]
[Date "2024.04.02"]
[Round "4"]
[White "tactic"]
[Black "schachlana"]
[Result "1-0"]
[WhiteElo "2607"]
[BlackElo "2389"]
[TimeControl "180+1"]
[EndTime "8:37:58 PDT"]
[Termination "tactic won by resignation"]

1. e4 {[%clk 0:03:00.9]} 1... c5 {[%clk 0:02:59.2]} 2. Nf3 {[%clk 0:02:57]} 2...
e6 {[%clk 0:02:52]} 3. d4 {[%clk 0:02:52.5]} 3... cxd4 {[%clk 0:02:52.9]} 4.
Nxd4 {[%clk 0:02:53]} 4... a6 {[%clk 0:02:38.3]} 5. c4 {[%clk 0:02:51.6]} 5...
Qc7 {[%clk 0:02:36.2]} 6. Nc3 {[%clk 0:02:51.6]} 6... Nf6 {[%clk 0:02:34.9]} 7.
Be2 {[%clk 0:02:48.3]} 7... Be7 {[%clk 0:02:34.6]} 8. O-O {[%clk 0:02:48]} 8...
O-O {[%clk 0:02:35.1]} 9. f4 {[%clk 0:02:42.1]} 9... d6 {[%clk 0:02:35.2]} 10.
Be3 {[%clk 0:02:40.3]} 10... Nbd7 {[%clk 0:02:35.4]} 11. g4 {[%clk 0:02:26.8]}
11... Nc5 {[%clk 0:02:20.3]} 12. Bf3 {[%clk 0:02:26]} 12... e5 {[%clk
0:02:14.8]} 13. Nf5 {[%clk 0:02:20.7]} 13... Bxf5 {[%clk 0:02:10.2]} 14. exf5
{[%clk 0:02:21.6]} 14... e4 {[%clk 0:02:08]} 15. Bg2 {[%clk 0:02:18.1]} 15...
Nd3 {[%clk 0:01:49.8]} 16. g5 {[%clk 0:02:09.4]} 16... Nd7 {[%clk 0:01:49.6]}
17. Bxe4 {[%clk 0:01:55.1]} 17... Nxb2 {[%clk 0:01:49.4]} 18. Qe2 {[%clk
0:01:55.5]} 18... Qxc4 {[%clk 0:01:25.8]} 19. Qxb2 {[%clk 0:01:54.7]} 19... Rac8
{[%clk 0:01:16.8]} 20. Rac1 {[%clk 0:01:51.5]} 20... b5 {[%clk 0:01:11.9]} 21.
Qb3 {[%clk 0:01:08]} 21... Rfe8 {[%clk 0:00:58.5]} 22. Rfe1 {[%clk 0:00:53.8]}
22... Bf8 {[%clk 0:00:51.7]} 23. Bd5 {[%clk 0:00:52.5]} 23... Qxb3 {[%clk
0:00:43.6]} 24. Bxb3 {[%clk 0:00:53.4]} 24... Nc5 {[%clk 0:00:38.7]} 25. Nd5
{[%clk 0:00:44.7]} 25... Nxb3 {[%clk 0:00:36.3]} 26. axb3 {[%clk 0:00:44.2]}
26... Rxc1 {[%clk 0:00:35]} 27. Rxc1 {[%clk 0:00:45.1]} 27... h6 {[%clk
0:00:23.8]} 28. gxh6 {[%clk 0:00:41.8]} 28... g6 {[%clk 0:00:17.5]} 29. fxg6
{[%clk 0:00:40.7]} 1-0

[Event "Early-Titled-Tuesday-Blitz-April-02-2024"]
[Site "Chess.com"]
[Date "2024.04.02"]
[Round "4"]
[White "ChessboArt"]
[Black "dianamirza"]
[Result "1-0"]
[WhiteElo "2286"]
[BlackElo "1973"]
[TimeControl "180+1"]
[EndTime "8:37:59 PDT"]
[Termination "ChessboArt won by resignation"]

1. Nf3 {[%clk 0:03:00.9]} 1... d5 {[%clk 0:02:35.5]} 2. g3 {[%clk 0:02:59.6]}
2... c6 {[%clk 0:02:35.1]} 3. Bg2 {[%clk 0:03:00.5]} 3... g6 {[%clk 0:02:35.6]}
4. d3 {[%clk 0:02:59.5]} 4... Bg7 {[%clk 0:02:36.5]} 5. O-O {[%clk 0:02:59.7]}
5... e5 {[%clk 0:02:37.1]} 6. Nbd2 {[%clk 0:02:59.5]} 6... Ne7 {[%clk
0:02:37.3]} 7. e4 {[%clk 0:02:59.5]} 7... d4 {[%clk 0:02:37.1]} 8. a4 {[%clk
0:02:55]} 8... O-O {[%clk 0:02:37.4]} 9. h3 {[%clk 0:02:53.1]} 9... f5 {[%clk
0:02:37.6]} 10. Re1 {[%clk 0:02:51.5]} 10... Be6 {[%clk 0:02:36]} 11. exf5
{[%clk 0:02:49.4]} 11... gxf5 {[%clk 0:02:35.5]} 12. Nxe5 {[%clk 0:02:48.6]}
12... Bd5 {[%clk 0:02:31.1]} 13. Ndf3 {[%clk 0:02:42.1]} 13... Ng6 {[%clk
0:02:26.1]} 14. Bg5 {[%clk 0:02:33.8]} 14... Qb6 {[%clk 0:02:18.6]} 15. Qc1
{[%clk 0:02:11.8]} 15... Nxe5 {[%clk 0:02:10.9]} 16. Nxe5 {[%clk 0:01:59.1]}
16... Bxg2 {[%clk 0:02:11.8]} 17. Kxg2 {[%clk 0:01:59.6]} 17... c5 {[%clk
0:02:05.1]} 18. a5 {[%clk 0:01:46.3]} 18... Qd6 {[%clk 0:01:53.2]} 19. Bf4
{[%clk 0:01:45.5]} 19... Qd5+ {[%clk 0:01:51.2]} 20. Kh2 {[%clk 0:01:46.1]}
20... Nc6 {[%clk 0:01:50]} 21. Nxc6 {[%clk 0:01:39.1]} 21... bxc6 {[%clk
0:01:46.3]} 22. Re7 {[%clk 0:01:14.9]} 22... Rfe8 {[%clk 0:01:44.8]} 23. Qe1
{[%clk 0:01:15.4]} 23... Rxe7 {[%clk 0:01:44.7]} 24. Qxe7 {[%clk 0:01:16.3]}
24... Qf3 {[%clk 0:01:37]} 25. Kg1 {[%clk 0:01:16]} 25... a6 {[%clk 0:01:18.9]}
26. Re1 {[%clk 0:01:13.8]} 26... Rf8 {[%clk 0:01:17.1]} 27. Qd7 {[%clk
0:01:06.2]} 27... Rf7 {[%clk 0:01:08.6]} 28. Re8+ {[%clk 0:01:03.2]} 28... Bf8
{[%clk 0:01:08.2]} 29. Qe6 {[%clk 0:00:59.1]} 29... Qh5 {[%clk 0:01:02.9]} 30.
Bd6 {[%clk 0:00:54.5]} 30... Kg7 {[%clk 0:00:55.6]} 31. Qe5+ {[%clk 0:00:52.5]}
31... Kg8 {[%clk 0:00:51.2]} 32. Qxc5 {[%clk 0:00:48.2]} 32... Qh6 {[%clk
0:00:34.3]} 33. Bxf8 {[%clk 0:00:46.7]} 33... Rxf8 {[%clk 0:00:33.5]} 34. Rxf8+
{[%clk 0:00:46.9]} 34... Qxf8 {[%clk 0:00:32.9]} 35. Qxf8+ {[%clk 0:00:47.2]}
35... Kxf8 {[%clk 0:00:33.8]} 36. Kg2 {[%clk 0:00:47.6]} 36... Ke7 {[%clk
0:00:31.5]} 37. Kf3 {[%clk 0:00:48.5]} 37... Kd6 {[%clk 0:00:31.9]} 38. Kf4
{[%clk 0:00:48.6]} 38... Kc5 {[%clk 0:00:32.3]} 39. Kxf5 {[%clk 0:00:48.6]}
39... Kb5 {[%clk 0:00:33.2]} 40. Ke5 {[%clk 0:00:49.3]} 40... Kxa5 {[%clk
0:00:34.1]} 41. Kxd4 {[%clk 0:00:49.6]} 1-0